bitfinex/quotes_SOLUSD_20240612
["timestamp","ask_amount","ask_price","bid_price","bid_amount"]
[1718205065395,100.0,159.7,159.59,6.5823]
[1718205066578,102.3168,159.7,159.59,6.5823]
[1718205066778,0.17,159.69,159.59,6.5823]
[1718205067274,106.85219566,159.69,159.59,6.5823]
[1718205067588,0.17,159.69,159.59,6.5823]
[1718205067812,0.68,159.7,159.59,6.5823]
[1718205068489,100.0,159.69,159.59,6.5823]
[1718205068791,0.17,159.68,159.59,6.5823]
[1718205069290,100.0,159.67,159.59,6.5823]
[1718205069670,102.3172,159.67,159.59,6.5823]
[1718205070297,100.0,159.65,159.59,6.5823]
[1718205070469,100.0,159.67,159.59,6.5823]
[1718205071174,0.17,159.66,159.59,6.5823]
[1718205071789,100.0,159.65,159.59,6.5823]
[1718205072691,0.34,159.64,159.59,6.5823]
[1718205072988,0.17,159.61,159.55,6.1071]
[1718205073199,100.0,159.6,159.55,6.1071]
[1718205073578,0.17,159.59,159.55,6.1071]
[1718205074167,0.51,159.61,159.55,6.1071]
[1718205076003,100.0,159.64,159.55,6.1071]
[1718205076205,100.0,159.66,159.56,22.59]
[1718205077397,102.3171,159.68,159.56,22.59]
[1718205077596,100.0,159.68,159.59,22.59]
[1718205077910,100.0,159.7,159.59,22.59]
[1718205078379,100.0,159.7,159.62,22.59]
[1718205078584,100.0,159.72,159.62,22.59]
[1718205078781,100.0,159.72,159.63,6.112]
[1718205078999,100.0,159.74,159.65,22.59]
[1718205079392,100.0,159.76,159.68,22.59]
[1718205079602,100.0,159.76,159.64,15.2524]
[1718205079815,106.50344988,159.76,159.65,42.76]
[1718205081113,2.8261,159.75,159.65,42.59]
[1718205081599,100.0,159.72,159.65,22.59]
[1718205081996,102.3165,159.72,159.65,22.59]
[1718205082193,102.3165,159.72,159.64,15.2524]
[1718205082397,100.0,159.72,159.64,15.2524]
[1718205083100,0.17,159.71,159.64,15.2524]
[1718205084195,0.17,159.72,159.64,15.2524]
[1718205084389,0.34,159.73,159.64,15.2524]
[1718205087806,100.17,159.72,159.64,15.2524]
[1718205088004,102.4866,159.72,159.64,15.2524]
[1718205088388,100.17,159.72,159.64,15.2524]
[1718205089306,0.34,159.73,159.64,15.2524]
[1718205089689,0.17,159.73,159.64,15.2524]
[1718205090306,106.50344988,159.76,159.65,22.76]
[1718205090717,106.50344988,159.76,159.65,22.59]
[1718205090905,100.0,159.78,159.66,0.17]
[1718205091109,100.0,159.78,159.67,6.2549]
[1718205091352,100.0,159.76,159.67,6.2549]
[1718205093612,0.51,159.75,159.67,6.2549]
[1718205093806,100.0,159.76,159.67,6.2549]
[1718205094318,0.17,159.75,159.67,6.2549]
[1718205094504,100.0,159.74,159.67,6.2549]
[1718205094727,0.17,159.73,159.67,6.2549]
[1718205095321,100.0,159.71,159.67,6.2549]
[1718205096315,100.17,159.73,159.67,6.2549]
[1718205098109,100.0,159.75,159.67,6.2549]
[1718205098416,6.49553494,159.78,159.67,6.2549]
[1718205098417,100.0,159.77,159.67,6.2549]
[1718205099025,100.0,159.77,159.67,28.8449]
[1718205099609,100.0,159.77,159.67,6.2549]
[1718205099830,100.0,159.77,159.67,28.8449]
[1718205100339,102.3159,159.77,159.67,28.8449]
[1718205100497,0.17,159.76,159.67,28.8449]
[1718205102716,0.17,159.77,159.67,28.8449]
[1718205103819,0.51,159.78,159.7,22.59]
[1718205104502,0.34,159.78,159.7,22.59]
[1718205104702,0.17,159.78,159.7,22.59]
[1718205105233,100.0,159.79,159.7,22.59]
[1718205105522,102.3152,159.81,159.71,6.1485]
[1718205106621,0.68,159.8,159.71,6.1485]
[1718205107340,100.0,159.79,159.71,6.1485]
[1718205107696,102.3156,159.79,159.71,6.1485]
[1718205107899,2.4857,159.78,159.71,6.1485]
[1718205108416,100.0,159.77,159.71,6.1485]
[1718205109713,6.65956281,159.8,159.71,6.1485]
[1718205109919,100.17,159.81,159.72,0.58072446]
[1718205110113,100.17,159.81,159.72,22.59]
[1718205110844,102.315,159.83,159.72,22.59]
[1718205111244,0.17,159.81,159.72,22.59]
[1718205113003,100.17,159.81,159.72,22.59]
[1718205113203,102.4852,159.81,159.72,22.59]
[1718205113718,100.17,159.81,159.72,22.59]
[1718205115627,100.17,159.81,159.73,15.9473]
[1718205115920,0.51,159.82,159.73,15.9473]
[1718205116425,100.17,159.83,159.73,15.9473]
[1718205116626,0.17,159.82,159.73,15.9473]
[1718205117128,100.0,159.81,159.73,15.9473]
[1718205117624,0.68,159.82,159.73,15.9473]
[1718205118826,102.3152,159.81,159.73,15.9473]
[1718205119524,100.0,159.79,159.73,15.9473]
[1718205121311,0.68,159.8,159.73,15.9473]
[1718205122424,0.17,159.8,159.73,15.9473]
[1718205122635,100.0,159.81,159.73,15.9473]
[1718205122804,102.3152,159.81,159.73,15.9473]
[1718205123009,100.0,159.81,159.73,15.9473]
[1718205124136,102.3152,159.81,159.73,15.9473]
[1718205124333,100.0,159.81,159.73,15.9473]
[1718205125230,102.3152,159.81,159.73,15.9473]
[1718205125426,100.0,159.81,159.73,15.9473]
[1718205125611,102.3152,159.81,159.73,15.9473]
[1718205125930,102.3153,159.81,159.73,15.9473]
[1718205126118,100.0,159.79,159.73,15.9473]
[1718205127036,100.68,159.82,159.73,15.9473]
[1718205127244,0.51,159.81,159.73,15.9473]
[1718205127614,100.17,159.82,159.73,15.9473]
[1718205127615,100.0,159.82,159.73,15.9473]
[1718205127934,102.3151,159.82,159.73,15.9473]
[1718205128434,100.0,159.8,159.73,15.9473]
[1718205128929,100.0,159.85,159.76,6.5836]
[1718205129418,255.8,159.86,159.76,6.5836]
[1718205129617,258.1145,159.86,159.76,6.5836]
[1718205129850,102.3147,159.85,159.76,6.5836]
[1718205130035,100.0,159.83,159.76,6.5836]
[1718205130538,0.17,159.84,159.76,6.5836]
[1718205130737,0.51,159.84,159.76,6.5836]
[1718205131715,100.0,159.83,159.76,6.5836]
[1718205132118,0.17,159.82,159.76,6.5836]
[1718205132529,0.51,159.82,159.76,6.5836]
[1718205132921,100.0,159.81,159.76,6.5836]
[1718205133137,100.0,159.85,159.76,6.5836]
[1718205133854,102.3146,159.85,159.76,6.5836]
[1718205134351,100.0,159.85,159.77,15.5173]
[1718205134516,0.17,159.84,159.77,15.5173]
[1718205134715,0.17,159.85,159.77,15.5173]
[1718205135137,255.8,159.86,159.78,22.59]
[1718205135823,258.1145,159.86,159.78,22.59]
[1718205136016,258.1146,159.86,159.78,22.59]
[1718205136218,255.8,159.86,159.78,22.59]
[1718205136423,100.0,159.85,159.78,22.59]
[1718205136622,255.97,159.86,159.78,22.59]
[1718205136830,255.8,159.86,159.78,22.59]
[1718205138443,100.17,159.85,159.78,22.59]
[1718205138642,100.17,159.85,159.77,15.5173]
[1718205138643,100.0,159.83,159.77,15.5173]
[1718205138848,0.51,159.84,159.77,15.5173]
[1718205139048,0.34,159.84,159.77,15.5173]
[1718205139546,100.17,159.85,159.77,15.5173]
[1718205141046,102.3146,159.85,159.77,15.5173]
[1718205141350,256.31,159.86,159.77,38.1073]
[1718205141555,255.97,159.86,159.77,38.1073]
[1718205143657,2.3147,159.85,159.77,38.1073]
[1718205144342,258.2845,159.86,159.77,38.1073]
[1718205144855,255.97,159.86,159.77,38.1073]
[1718205145757,258.2845,159.86,159.77,38.1073]
[1718205146056,2.3147,159.85,159.77,38.1073]
[1718205146236,2.3148,159.84,159.77,38.1073]
[1718205146569,102.3154,159.8,159.77,15.5173]
[1718205146858,2.3155,159.79,159.76,6.5836]
[1718205147165,102.3157,159.78,159.73,16.6447]
[1718205148465,0.34,159.77,159.73,16.6447]
[1718205148636,0.17,159.75,159.72,6.1497]
[1718205148842,0.17,159.77,159.72,6.1497]
[1718205149944,0.17,159.79,159.72,6.1497]
[1718205150159,0.68,159.79,159.72,6.1497]
[1718205150650,0.17,159.81,159.72,6.1497]
[1718205150850,102.3148,159.84,159.73,15.1391]
[1718205152049,100.0,159.79,159.73,15.1391]
[1718205152241,0.51,159.78,159.73,15.1391]
[1718205152849,100.0,159.77,159.73,15.1391]
[1718205153756,0.51,159.78,159.73,15.1391]
[1718205154265,0.17,159.76,159.73,15.1391]
[1718205154457,0.51,159.76,159.72,6.1497]
[1718205154649,0.34,159.78,159.72,6.1497]
[1718205155377,100.0,159.76,159.72,6.1497]
[1718205155547,0.17,159.75,159.72,6.1497]
[1718205156140,2.8261,159.75,159.72,6.1497]
[1718205156742,2.8261,159.75,159.69,16.5184]
[1718205156743,0.17,159.73,159.69,16.5184]
[1718205157142,0.17,159.73,159.68,6.5357]
[1718205157143,100.0,159.71,159.68,6.5357]
[1718205157352,0.34,159.72,159.68,6.5357]
[1718205157654,100.0,159.73,159.68,6.5357]
[1718205158768,102.3164,159.73,159.68,6.5357]
[1718205160645,100.0,159.71,159.68,6.5357]
[1718205162752,0.17,159.7,159.68,6.5357]
[1718205163464,100.0,159.71,159.68,6.5357]
[1718205163766,0.34,159.72,159.68,6.5357]
[1718205164074,100.0,159.73,159.68,6.5357]
[1718205164448,0.17,159.74,159.68,6.5357]
[1718205164646,100.0,159.75,159.68,6.5357]
[1718205164864,100.0,159.73,159.68,6.5357]
[1718205166045,100.0,159.77,159.68,6.5357]
[1718205166250,0.68,159.76,159.68,29.1257]
[1718205166465,102.3156,159.79,159.68,29.1257]
[1718205166657,102.3156,159.79,159.69,15.8198]
[1718205167068,100.0,159.77,159.69,15.8198]
[1718205167269,102.3158,159.77,159.69,15.8198]
[1718205167575,2.3157,159.78,159.69,15.8198]
[1718205167865,0.17,159.77,159.69,15.8198]
[1718205168370,102.4858,159.77,159.69,15.8198]
[1718205169270,2.316,159.76,159.69,15.8198]
[1718205169579,100.17,159.75,159.69,15.8198]
[1718205169753,100.0,159.75,159.69,15.8198]
[1718205170151,100.68,159.77,159.69,15.8198]
[1718205171069,100.17,159.77,159.69,15.8198]
[1718205171379,0.17,159.78,159.69,15.8198]
[1718205171675,0.68,159.78,159.69,15.8198]
[1718205172874,0.34,159.78,159.72,6.3771]
[1718205173074,0.17,159.78,159.72,6.3771]
[1718205173376,100.0,159.81,159.72,6.3771]
[1718205174276,102.3152,159.81,159.72,6.3771]
[1718205175253,100.0,159.81,159.72,6.3771]
[1718205176697,2.3153,159.8,159.72,6.3771]
[1718205177558,102.3153,159.81,159.72,6.3771]
[1718205178358,100.0,159.81,159.72,6.3771]
[1718205178566,0.34,159.8,159.72,6.3771]
[1718205178778,2.6554,159.8,159.72,6.3771]
[1718205179290,100.17,159.78,159.72,6.3771]
[1718205180084,102.4857,159.78,159.72,6.3771]
[1718205180459,100.17,159.78,159.72,6.3771]
[1718205180765,102.4857,159.78,159.72,6.3771]
[1718205181565,100.0,159.76,159.72,6.3771]
[1718205181762,0.51,159.77,159.72,6.3771]
[1718205181973,100.0,159.76,159.72,6.3771]
[1718205182276,0.17,159.75,159.72,6.3771]
[1718205183074,100.0,159.74,159.72,6.3771]
[1718205184385,100.0,159.74,159.69,15.8198]
[1718205185194,0.51,159.75,159.69,15.8198]
[1718205185379,0.17,159.75,159.69,15.8198]
[1718205185771,100.0,159.74,159.69,15.8198]
[1718205186172,0.51,159.73,159.69,15.8198]
[1718205186470,100.0,159.74,159.69,15.8198]
[1718205188378,0.17,159.73,159.69,15.8198]
[1718205190187,100.0,159.72,159.69,15.8198]
[1718205190371,0.17,159.73,159.69,15.8198]
[1718205192011,100.0,159.72,159.69,15.8198]
[1718205192491,0.17,159.73,159.69,15.8198]
[1718205193594,0.51,159.73,159.69,15.8198]
[1718205195178,100.0,159.74,159.69,15.8198]
[1718205196086,0.34,159.75,159.69,15.8198]
[1718205196795,0.68,159.74,159.69,15.8198]
[1718205196992,0.34,159.74,159.69,15.8198]
[1718205197294,100.0,159.75,159.69,15.8198]
[1718205197981,11.577,159.8,159.69,15.8198]
[1718205197982,0.17,159.76,159.69,15.8198]
[1718205198289,0.51,159.76,159.69,15.8198]
[1718205198680,100.0,159.75,159.69,15.8198]
[1718205198883,0.51,159.76,159.73,7.53]
[1718205200697,12.1612,159.79,159.69,15.8198]
[1718205200698,100.0,159.79,159.75,7.53]
[1718205200871,100.0,159.79,159.77,7.53]
[1718205201070,35.6194,159.83,159.68,36.1638]
[1718205201071,100.0,159.83,159.78,7.53]
[1718205201390,100.0,159.83,159.8,7.53]
[1718205201780,100.0,159.83,159.81,7.53]
[1718205202987,100.0,159.83,159.76,15.2572]
[1718205203285,2.3149,159.84,159.76,15.2572]
[1718205203889,102.3147,159.85,159.76,15.2572]
[1718205204079,100.0,159.85,159.76,15.2572]
[1718205204285,102.3146,159.85,159.76,15.2572]
[1718205205185,0.17,159.84,159.76,15.2572]
[1718205205379,2.4848,159.84,159.76,15.2572]
[1718205205772,258.1146,159.86,159.76,15.2572]
[1718205206284,258.1146,159.86,159.78,22.55]
[1718205207011,255.8,159.86,159.78,22.55]
[1718205207304,255.8,159.86,159.79,6.166]
[1718205207813,2.3145,159.86,159.79,6.166]
[1718205208307,2.3146,159.85,159.79,6.166]
[1718205209201,0.17,159.85,159.79,6.166]
[1718205210015,0.51,159.86,159.79,6.166]
[1718205210306,0.34,159.86,159.79,6.166]
[1718205210700,0.17,159.86,159.79,6.166]
[1718205211411,50.0784286,160.12,159.79,6.166]
[1718205211412,102.3141,159.89,159.79,6.166]
[1718205211707,100.0,159.87,159.79,6.166]
[1718205212516,102.3143,159.87,159.79,6.166]
[1718205212894,100.0,159.87,159.79,6.166]
[1718205213109,102.3144,159.87,159.79,6.166]
[1718205213690,100.0,159.85,159.79,6.166]
[1718205214013,102.3147,159.85,159.79,6.166]
[1718205216191,100.0,159.85,159.79,6.166]
[1718205216818,100.0,159.83,159.79,6.166]
[1718205217910,0.51,159.84,159.79,6.166]
[1718205218513,100.0,159.83,159.79,6.166]
[1718205218900,0.51,159.84,159.79,6.166]
[1718205221716,100.0,159.83,159.79,6.166]
[1718205223110,256.31,159.84,159.79,6.166]
[1718205223715,100.0,159.83,159.79,6.166]
[1718205225321,100.0,159.83,159.81,7.52]
[1718205225519,256.31,159.84,159.81,7.52]
[1718205225821,255.8,159.84,159.81,7.52]
[1718205226197,255.8,159.84,159.82,7.52]
[1718205226397,255.8,159.84,159.79,6.166]
[1718205226398,255.8,159.84,159.83,7.52]
[1718205228520,0.17,159.86,159.83,7.52]
[1718205228703,2.3142,159.88,159.85,7.52]
[1718205229328,100.0,159.87,159.84,7.52]
[1718205229539,100.0,159.87,159.85,7.52]
[1718205230197,102.3144,159.87,159.84,7.52]
[1718205231431,2.4845,159.86,159.84,7.52]
[1718205231638,0.17,159.86,159.83,7.52]
[1718205233830,0.68,159.86,159.83,7.52]
[1718205235023,0.68,159.86,159.79,6.166]
[1718205235241,100.0,159.85,159.82,7.52]
[1718205236130,100.0,159.85,159.79,6.166]
[1718205236304,0.17,159.84,159.79,6.166]
[1718205236708,0.68,159.84,159.81,7.52]
[1718205237235,0.68,159.84,159.79,6.166]
[1718205237463,0.68,159.84,159.8,7.52]
[1718205237610,0.68,159.84,159.81,7.52]
[1718205237804,100.0,159.85,159.81,7.52]
[1718205238005,100.0,159.85,159.79,6.166]
[1718205238312,0.17,159.84,159.79,6.166]
[1718205238501,0.51,159.84,159.81,7.52]
[1718205238729,100.0,159.85,159.81,7.52]
[1718205239628,100.0,159.85,159.79,6.166]
[1718205239629,100.0,159.85,159.82,7.52]
[1718205239824,100.0,159.85,159.83,7.52]
[1718205240127,100.0,159.85,159.79,6.166]
[1718205240335,100.0,159.85,159.82,7.52]
[1718205241240,100.0,159.85,159.83,7.52]
[1718205241427,100.0,159.85,159.82,7.52]
[1718205241634,100.0,159.85,159.79,6.166]
[1718205241837,100.0,159.85,159.82,7.52]
[1718205242215,100.0,159.85,159.83,7.52]
[1718205243914,100.0,159.85,159.79,6.166]
[1718205243915,100.0,159.85,159.82,7.52]
[1718205246751,0.68,159.84,159.82,7.52]
[1718205246964,0.17,159.84,159.82,7.52]
[1718205247131,100.0,159.85,159.82,7.52]
[1718205247936,102.3146,159.85,159.82,7.52]
[1718205248247,102.3146,159.85,159.8,7.52]
[1718205248248,100.0,159.83,159.8,7.52]
[1718205248750,0.34,159.82,159.8,7.52]
[1718205248947,2.6551,159.82,159.76,15.2572]
[1718205249242,0.34,159.82,159.79,7.52]
[1718205250632,0.34,159.82,159.8,7.52]
[1718205251045,100.0,159.83,159.76,22.7772]
[1718205251253,100.0,159.83,159.81,7.52]
[1718205251626,100.0,159.83,159.76,45.3372]
[1718205252546,100.0,159.85,159.76,45.3372]
[1718205252852,100.0,159.85,159.82,7.52]
[1718205253238,102.3147,159.85,159.81,7.52]
[1718205253758,100.34,159.84,159.8,7.52]
[1718205253941,100.17,159.84,159.81,7.52]
[1718205255651,100.17,159.84,159.76,15.2572]
[1718205255849,100.17,159.84,159.81,7.52]
[1718205256551,0.34,159.83,159.76,45.3372]
[1718205256736,0.17,159.82,159.8,7.52]
[1718205257157,100.17,159.84,159.81,7.52]
[1718205257356,102.4848,159.84,159.81,7.52]
[1718205258055,100.17,159.84,159.81,7.52]
[1718205259352,102.4848,159.84,159.81,7.52]
[1718205259855,102.4848,159.84,159.8,7.52]
[1718205260030,100.17,159.84,159.81,7.52]
[1718205260849,100.0,159.82,159.75,6.4337]
[1718205261052,100.0,159.82,159.79,7.52]
[1718205262640,0.17,159.83,159.8,7.52]
[1718205262832,0.68,159.83,159.8,7.52]
[1718205263040,100.17,159.84,159.77,16.1686]
[1718205263237,100.17,159.84,159.82,7.52]
[1718205263431,0.17,159.85,159.83,7.52]
[1718205263649,0.17,159.85,159.84,7.52]
[1718205263856,100.0,159.86,159.84,7.52]
[1718205264060,100.0,159.86,159.83,7.52]
[1718205264863,100.0,159.86,159.85,7.52]
[1718205265065,100.34,159.86,159.85,7.52]
[1718205265569,100.17,159.86,159.85,7.52]
[1718205266366,100.17,159.86,159.84,7.52]
[1718205266870,100.17,159.86,159.83,7.52]
[1718205269678,100.17,159.86,159.77,16.1686]
[1718205269886,100.17,159.86,159.84,7.52]
[1718205270556,0.17,159.86,159.84,7.52]
[1718205274665,0.17,159.86,159.85,7.52]
[1718205275386,0.34,159.87,159.85,7.52]
[1718205275582,2.4842,159.88,159.86,7.52]
[1718205276082,0.17,159.88,159.86,7.52]
[1718205276268,102.4843,159.87,159.86,7.52]
[1718205276689,100.68,159.87,159.85,7.52]
[1718205276993,0.17,159.86,159.85,7.52]
[1718205278196,0.17,159.87,159.85,7.52]
[1718205278360,0.68,159.88,159.85,7.52]
[1718205278557,100.0,159.87,159.78,1.20514183]
[1718205278885,0.17,159.86,159.85,7.52]
[1718205279379,0.34,159.88,159.85,7.52]
[1718205279588,2.4842,159.88,159.81,6.346]
[1718205279766,102.6543,159.87,159.85,7.52]
[1718205279975,100.34,159.87,159.81,6.346]
[1718205280156,102.6543,159.87,159.85,7.52]
[1718205280577,0.17,159.88,159.81,6.346]
[1718205280887,2.6542,159.88,159.85,7.52]
[1718205281070,100.0,159.87,159.85,7.52]
[1718205281686,0.51,159.88,159.85,7.52]
[1718205282384,100.0,159.87,159.85,7.52]
[1718205283275,0.51,159.88,159.85,7.52]
[1718205283676,0.51,159.88,159.81,6.346]
[1718205283876,0.51,159.88,159.85,7.52]
[1718205284382,2.8242,159.88,159.85,7.52]
[1718205286077,2.8242,159.88,159.78,65.0]
[1718205286078,0.17,159.86,159.78,20.0]
[1718205286264,102.3146,159.85,159.82,7.52]
[1718205286459,102.3146,159.85,159.77,6.1178]
[1718205286460,100.0,159.85,159.77,6.1178]
[1718205286765,100.0,159.85,159.81,7.52]
[1718205287363,100.0,159.85,159.82,7.52]
[1718205287568,100.0,159.85,159.81,7.52]
[1718205287780,0.17,159.86,159.83,7.52]
[1718205287960,100.17,159.87,159.84,7.52]
[1718205288991,102.4843,159.87,159.84,7.52]
[1718205289484,100.17,159.87,159.84,7.52]
[1718205290179,102.4844,159.87,159.78,1.25139094]
[1718205290375,2.6545,159.86,159.83,7.52]
[1718205291276,2.6545,159.86,159.78,45.0]
[1718205291461,2.6545,159.86,159.83,7.52]
[1718205291661,2.6545,159.86,159.78,45.0]
[1718205291958,2.3146,159.85,159.78,45.0]
[1718205292161,102.3146,159.85,159.81,7.52]
[1718205292573,100.0,159.85,159.81,7.52]
[1718205293084,100.0,159.85,159.82,7.52]
[1718205294180,100.0,159.85,159.81,7.52]
[1718205294181,102.3146,159.85,159.81,7.52]
[1718205294388,100.0,159.85,159.81,7.52]
[1718205298587,102.3147,159.85,159.81,7.52]
[1718205298992,100.0,159.85,159.81,7.52]
[1718205300089,0.51,159.86,159.82,7.52]
[1718205300293,102.3143,159.88,159.82,7.52]
[1718205300520,102.3143,159.88,159.84,7.52]
[1718205300661,100.0,159.88,159.85,7.52]
[1718205300867,100.0,159.91,159.87,7.52]
[1718205301073,100.0,159.91,159.88,7.52]
[1718205301269,102.3138,159.91,159.86,7.52]
[1718205301468,100.0,159.91,159.83,6.5097]
[1718205301768,100.0,159.91,159.87,7.52]
[1718205301972,102.3138,159.91,159.87,7.52]
[1718205302187,100.0,159.91,159.83,6.5097]
[1718205302385,102.3141,159.89,159.83,6.5097]
[1718205302573,102.3141,159.89,159.84,7.52]
[1718205302774,100.0,159.87,159.8,15.0064]
[1718205302968,0.17,159.88,159.84,7.52]
[1718205303168,100.0,159.89,159.85,7.52]
[1718205303392,9.8338,159.91,159.8,15.0064]
[1718205303393,0.17,159.9,159.86,7.52]
[1718205303696,0.68,159.9,159.86,7.52]
[1718205303882,0.34,159.9,159.8,15.0064]
[1718205304093,100.0,159.91,159.87,7.52]
[1718205304272,102.3138,159.91,159.87,7.52]
[1718205304684,100.0,159.88,159.8,15.0064]
[1718205304888,100.0,159.88,159.85,7.52]
[1718205305080,100.0,159.88,159.8,15.0064]
[1718205305284,100.0,159.88,159.84,7.52]
[1718205305699,0.17,159.89,159.85,7.52]
[1718205305873,0.17,159.88,159.85,7.52]
[1718205306076,0.51,159.89,159.86,7.52]
[1718205306281,100.0,159.88,159.81,0.86264022]
[1718205306490,102.3142,159.88,159.8,15.0064]
[1718205306689,102.3142,159.88,159.84,7.52]
[1718205307079,102.3142,159.88,159.8,15.0064]
[1718205307280,0.68,159.87,159.83,7.52]
[1718205307491,100.0,159.86,159.8,15.0064]
[1718205307788,100.0,159.86,159.83,7.52]
[1718205308013,100.0,159.84,159.79,6.2437]
[1718205308181,100.0,159.84,159.8,7.52]
[1718205308574,0.17,159.85,159.8,7.52]
[1718205308804,0.68,159.85,159.81,7.52]
[1718205309374,16.0157,159.87,159.79,6.2437]
[1718205309573,0.17,159.87,159.84,7.52]
[1718205310000,0.34,159.87,159.84,7.52]
[1718205310188,100.0,159.88,159.84,7.52]
[1718205310898,0.34,159.89,159.84,7.52]
[1718205311099,100.17,159.88,159.84,7.52]
[1718205311592,100.0,159.86,159.79,6.2437]
[1718205311796,100.0,159.86,159.83,7.52]
[1718205312707,102.3145,159.86,159.79,6.2437]
[1718205312883,102.3145,159.86,159.82,7.52]
[1718205313500,100.0,159.86,159.82,7.52]
[1718205313715,100.0,159.86,159.76,45.8537]
[1718205313716,0.17,159.83,159.76,15.7737]
[1718205313881,2.9949,159.83,159.76,15.7737]
[1718205314206,2.9949,159.83,159.77,7.52]
[1718205314207,8.2,159.83,159.77,7.52]
[1718205314704,0.51,159.83,159.78,7.52]
[1718205314999,0.51,159.83,159.76,15.7737]
[1718205315177,0.51,159.83,159.79,7.52]
[1718205315907,0.51,159.83,159.76,15.7737]
[1718205316119,0.51,159.83,159.79,7.52]
[1718205316694,100.0,159.82,159.78,7.52]
[1718205316893,100.0,159.82,159.69,22.0417]
[1718205316894,2.3165,159.72,159.68,3.26102884]
[1718205317121,100.0,159.71,159.68,3.26102884]
[1718205317325,2.8268,159.7,159.6,33.34102884]
[1718205317615,2.9969,159.7,159.65,7.52]
[1718205317789,0.34,159.7,159.67,7.52]
[1718205317989,0.17,159.7,159.68,7.52]
[1718205318186,0.17,159.7,159.67,7.52]
[1718205318623,102.3165,159.73,159.67,7.52]
[1718205318799,0.68,159.72,159.67,7.52]
[1718205318994,100.0,159.71,159.67,7.52]
[1718205319917,100.0,159.69,159.59,16.6063]
[1718205320225,109.837,159.69,159.63,7.52]
[1718205320723,100.0,159.67,159.59,16.6063]
[1718205320931,100.0,159.65,159.55,15.618]
[1718205321098,109.8376,159.65,159.55,15.618]
[1718205321508,100.0,159.63,159.55,15.618]
[1718205321721,100.0,159.63,159.59,7.52]
[1718205321901,0.51,159.64,159.6,7.52]
[1718205322332,100.0,159.63,159.55,15.618]
[1718205322520,100.0,159.63,159.59,7.52]
[1718205322831,100.0,159.63,159.55,15.618]
[1718205323298,0.34,159.62,159.54,29.0278]